bitfinex/quotes_SOLUSD_20241126
["timestamp","ask_amount","ask_price","bid_price","bid_amount"]
[1732630612361,42.76967254,228.85,228.77,42.76967254]
[1732630612569,0.34038814,228.84,228.77,42.76967254]
[1732630613266,42.76967254,228.83,228.75,42.76967254]
[1732630613469,0.34038814,228.82,228.75,42.76967254]
[1732630614262,42.76967254,228.81,228.73,42.76967254]
[1732630614450,0.34038814,228.8,228.75,42.76967254]
[1732630615371,0.34038814,228.81,228.76,42.76967254]
[1732630615573,0.34038814,228.81,228.74,42.76967254]
[1732630616378,26.24884858,228.84,228.77,26.24884858]
[1732630616578,0.34038814,228.83,228.77,26.24884858]
[1732630617469,0.34038814,228.83,228.75,26.24884858]
[1732630617673,26.24884858,228.82,228.73,26.24884858]
[1732630617874,0.34038814,228.81,228.75,26.24884858]
[1732630618076,26.24884858,228.82,228.75,26.24884858]
[1732630618273,0.34038814,228.81,228.75,26.24884858]
[1732630619062,0.34038814,228.81,228.73,26.24884858]
[1732630619568,26.24884858,228.8,228.71,26.24884858]
[1732630619780,0.34038814,228.79,228.71,26.24884858]
[1732630620380,0.34038814,228.79,228.74,26.24884858]
[1732630620575,0.34038814,228.79,228.69,26.24884858]
[1732630620576,0.34038814,228.8,228.76,26.24884858]
[1732630620963,0.34038814,228.82,228.76,26.24884858]
[1732630621360,0.34038814,228.82,228.66,15.4812]
[1732630621361,26.24884858,228.81,228.74,26.24884858]
[1732630621571,0.34038814,228.8,228.74,26.24884858]
[1732630621882,0.34038814,228.85,228.79,26.24884858]
[1732630622188,0.34038814,228.9,228.84,26.24884858]
[1732630622360,26.24884858,228.92,228.84,26.24884858]
[1732630622564,0.34038814,228.91,228.84,26.24884858]
[1732630622762,26.24884858,228.88,228.8,26.24884858]
[1732630623087,0.34038814,228.91,228.83,26.24884858]
[1732630623088,26.58923672,228.91,228.83,26.24884858]
[1732630623266,0.34038814,228.91,228.85,26.24884858]
[1732630623879,26.24884858,228.89,228.81,26.24884858]
[1732630624078,26.24884858,228.86,228.78,41.73004858]
[1732630624269,0.34038814,228.85,228.8,26.24884858]
[1732630624474,0.34038814,228.87,228.8,26.24884858]
[1732630624786,26.24884858,228.92,228.8,26.24884858]
[1732630624989,0.34038814,228.98,228.91,26.24884858]
[1732630625284,0.34038814,229.0,228.94,26.24884858]
[1732630625471,0.34038814,229.0,228.93,26.24884858]
[1732630625670,0.34038814,229.01,228.95,26.24884858]
[1732630626076,26.58923672,229.02,228.95,26.24884858]
[1732630626264,26.58923672,229.02,228.93,26.24884858]
[1732630626464,26.24884858,229.0,228.93,26.24884858]
[1732630626665,0.34038814,228.99,228.93,26.24884858]
[1732630626887,26.24884858,228.98,228.91,41.73004858]
[1732630627071,0.34038814,228.97,228.89,26.24884858]
[1732630627479,26.24884858,228.96,228.89,26.24884858]
[1732630627780,0.5200948,229.03,228.87,0.12549]
[1732630627781,0.5200948,229.03,228.95,26.24884858]
[1732630627983,0.5200948,229.03,229.0,26.24884858]
[1732630628179,0.5200948,229.03,229.02,26.24884858]
[1732630628379,0.5200948,229.03,229.0,26.24884858]
[1732630630073,0.5200948,229.03,229.0,41.73004858]
[1732630630291,0.5200948,229.03,229.02,26.24884858]
[1732630630472,0.0200948,229.03,229.02,26.24884858]
[1732630631163,0.0200948,229.03,229.0,41.73004858]
[1732630631391,0.0200948,229.03,228.98,26.24884858]
[1732630631573,26.26894338,229.03,228.96,26.24884858]
[1732630631774,26.26894338,229.03,228.98,26.24884858]
[1732630631775,0.0200948,229.03,228.98,26.24884858]
[1732630631975,0.0200948,229.03,229.0,26.24884858]
[1732630632893,0.0200948,229.03,228.96,26.24884858]
[1732630633079,26.24884858,228.97,228.9,26.24884858]
[1732630633475,0.34038814,228.96,228.88,26.24884858]
[1732630633894,0.34038814,228.96,228.89,26.24884858]
[1732630634083,0.34038814,228.96,228.87,26.24884858]
[1732630634084,26.24884858,228.95,228.87,26.24884858]
[1732630634282,0.34038814,228.94,228.87,26.24884858]
[1732630635192,0.34038814,229.01,228.89,26.24884858]
[1732630635400,26.24884858,229.0,228.91,26.24884858]
[1732630635578,0.0200948,229.03,228.97,26.24884858]
[1732630635780,0.36048294,229.03,228.97,26.24884858]
[1732630636094,0.0200948,229.03,229.01,26.24884858]
[1732630636477,0.0200948,229.03,228.99,26.24884858]
[1732630636988,0.0200948,229.03,229.02,26.24884858]
[1732630637495,0.0200948,229.03,228.98,41.73004858]
[1732630637905,0.0200948,229.03,229.0,26.24884858]
[1732630639787,26.24884858,229.01,228.95,26.24884858]
[1732630639985,0.0200948,229.03,228.92,15.9178]
[1732630639986,26.24884858,228.99,228.92,15.9178]
[1732630640177,0.34038814,228.98,228.89,26.24884858]
[1732630640400,26.24884858,228.93,228.86,15.9178]
[1732630640579,0.34038814,228.92,228.85,32.57364858]
[1732630640898,26.24884858,228.89,228.83,7.76746113]
[1732630641100,26.24884858,228.85,228.83,7.76746113]
[1732630641281,0.34038814,228.84,228.83,7.76746113]
[1732630641876,26.58923672,228.84,228.83,7.76746113]
[1732630642090,26.58923672,228.84,228.73,26.24884858]
[1732630642293,42.67756916,228.78,228.7,42.67756916]
[1732630642485,4.99956645,228.86,228.68,15.9178]
[1732630642486,42.67756916,228.76,228.68,42.67756916]
[1732630642691,0.34038814,228.75,228.68,42.67756916]
[1732630643107,0.34038814,228.75,228.7,42.67756916]
[1732630643302,0.34038814,228.77,228.72,42.67756916]
[1732630643596,42.67756916,228.76,228.68,42.67756916]
[1732630643800,42.67756916,228.7,228.62,42.67756916]
[1732630643975,0.34038814,228.69,228.63,17.497107]
[1732630644178,42.67756916,228.7,228.62,42.67756916]
[1732630644400,0.34038814,228.69,228.62,42.67756916]
[1732630645099,0.34038814,228.69,228.6,15.9178]
[1732630645100,42.67756916,228.68,228.6,42.67756916]
[1732630645304,10.9275,228.78,228.62,42.67756916]
[1732630645305,0.34038814,228.67,228.62,42.67756916]
[1732630645514,0.34038814,228.67,228.6,42.67756916]
[1732630645798,43.0179573,228.74,228.66,42.67756916]
[1732630645976,43.0179573,228.74,228.64,42.67756916]
[1732630645977,42.67756916,228.72,228.64,42.67756916]
[1732630646178,0.34038814,228.71,228.64,42.67756916]
[1732630647302,0.34038814,228.76,228.69,42.67756916]
[1732630647600,42.67756916,228.75,228.67,42.67756916]
[1732630647802,42.67756916,228.8,228.63,42.67756916]
[1732630647803,42.67756916,228.71,228.63,42.67756916]
[1732630648100,42.67756916,228.69,228.61,42.67756916]
[1732630648282,0.34038814,228.68,228.61,42.67756916]
[1732630648601,42.67756916,228.75,228.67,42.67756916]
[1732630648786,0.34038814,228.77,228.58,42.67756916]
[1732630648787,0.34038814,228.74,228.69,42.67756916]
[1732630648991,42.67756916,228.75,228.67,42.67756916]
[1732630649180,43.0179573,228.79,228.72,42.67756916]
[1732630649376,0.34038814,228.79,228.72,42.67756916]
[1732630649608,0.34038814,228.79,228.74,42.67756916]
[1732630649982,0.34038814,228.79,228.72,42.67756916]
[1732630650185,0.34038814,228.84,228.78,42.67756916]
[1732630650503,49.00236916,228.87,228.69,47.67756916]
[1732630650504,42.67756916,228.85,228.76,42.67756916]
[1732630650708,42.67756916,228.83,228.76,42.67756916]
[1732630650891,42.67756916,228.81,228.74,42.67756916]
[1732630651090,0.34038814,228.8,228.74,42.67756916]
[1732630652500,0.34038814,228.82,228.77,42.67756916]
[1732630652693,43.0179573,228.82,228.75,42.67756916]
[1732630652903,0.34038814,228.82,228.75,42.67756916]
[1732630653209,0.34038814,228.82,228.77,42.67756916]
[1732630653508,0.34038814,228.83,228.77,42.67756916]
[1732630654103,42.67756916,228.88,228.79,42.67756916]
[1732630654306,42.67756916,228.92,228.85,42.67756916]
[1732630654512,42.67756916,228.95,228.87,42.67756916]
[1732630654713,0.34038814,228.99,228.93,42.67756916]
[1732630655008,42.67756916,228.96,228.87,20.0]
[1732630655199,0.34038814,228.95,228.88,42.67756916]
[1732630655904,42.67756916,228.92,228.84,58.06956916]
[1732630656100,0.34038814,228.91,228.84,42.67756916]
[1732630656294,42.67756916,228.86,228.78,42.67756916]
[1732630656487,0.34038814,228.85,228.78,42.67756916]
[1732630656681,42.67756916,228.84,228.77,15.392]
[1732630656885,42.67756916,228.82,228.74,42.67756916]
[1732630657103,0.34038814,228.81,228.74,42.67756916]
[1732630657310,0.34038814,228.81,228.72,42.67756916]
[1732630657311,42.67756916,228.8,228.72,42.67756916]
[1732630657499,0.34038814,228.79,228.72,42.67756916]
[1732630658513,42.67756916,228.82,228.74,42.67756916]
[1732630658688,0.34038814,228.81,228.74,42.67756916]
[1732630659612,0.34038814,228.81,228.76,42.67756916]
[1732630659810,42.67756916,228.84,228.71,23.776884]
[1732630659811,42.67756916,228.88,228.8,42.67756916]
[1732630659986,0.34038814,228.87,228.8,42.67756916]
[1732630661498,42.67756916,228.86,228.76,42.67756916]
[1732630661695,42.67756916,228.8,228.72,42.67756916]
[1732630661890,0.34038814,228.79,228.72,42.67756916]
[1732630662094,0.34038814,228.79,228.74,42.67756916]
[1732630662406,0.34038814,228.81,228.74,42.67756916]
[1732630662805,0.34038814,228.81,228.7,42.67756916]
[1732630662806,42.67756916,228.78,228.7,42.67756916]
[1732630662987,42.67756916,228.74,228.66,42.67756916]
[1732630663311,0.34038814,228.73,228.66,42.67756916]
[1732630663609,42.67756916,228.76,228.68,42.67756916]
[1732630663815,0.34038814,228.75,228.68,42.67756916]
[1732630665995,0.34038814,228.75,228.7,42.67756916]
[1732630666196,0.34038814,228.77,228.7,42.67756916]
[1732630667196,0.34038814,228.77,228.72,42.67756916]
[1732630667518,42.67756916,228.78,228.7,42.67756916]
[1732630667742,0.34038814,228.77,228.7,42.67756916]
[1732630668103,42.67756916,228.76,228.68,42.67756916]
[1732630668418,26.27055161,228.73,228.67,26.27055161]
[1732630668718,0.34038814,228.72,228.65,26.27055161]
[1732630671442,26.27055161,228.68,228.61,26.27055161]
[1732630671612,0.34038814,228.67,228.59,26.27055161]
[1732630672125,0.34038814,228.67,228.61,26.27055161]
[1732630672303,0.34038814,228.69,228.63,26.27055161]
[1732630673432,26.27055161,228.73,228.66,26.27055161]
[1732630673724,18.428,228.82,228.68,26.27055161]
[1732630673725,26.61093975,228.75,228.68,26.27055161]
[1732630674533,26.61093975,228.75,228.66,26.27055161]
[1732630674912,26.27055161,228.73,228.64,26.27055161]
[1732630675257,26.27055161,228.69,228.6,26.27055161]
[1732630675433,26.27055161,228.62,228.54,26.27055161]
[1732630675618,26.27055161,228.58,228.5,41.53575161]
[1732630675808,26.27055161,228.58,228.51,17.506592]
[1732630676308,26.27055161,228.56,228.48,26.27055161]
[1732630676510,26.27055161,228.56,228.49,17.508139]
[1732630677206,26.27055161,228.56,228.48,26.27055161]
[1732630677417,26.27055161,228.56,228.48,43.77933061]
[1732630678326,0.34038814,228.55,228.48,43.77933061]
[1732630678730,0.34038814,228.55,228.48,17.508779]
[1732630678731,26.27055161,228.54,228.48,17.508779]
[1732630678922,26.27055161,228.54,228.46,26.77055161]
[1732630678923,0.34038814,228.53,228.46,26.77055161]
[1732630679442,26.27055161,228.56,228.48,26.27055161]
[1732630679732,0.34038814,228.55,228.5,26.27055161]
[1732630679928,26.27055161,228.56,228.5,26.27055161]
[1732630680317,0.34038814,228.55,228.5,26.27055161]
[1732630681333,0.34038814,228.55,228.46,0.5]
[1732630681635,0.34038814,228.55,228.48,26.27055161]
[1732630681843,26.27055161,228.58,228.5,26.27055161]
[1732630682021,26.27055161,228.58,228.46,4.877]
[1732630682022,0.34038814,228.57,228.46,4.877]
[1732630682218,26.27055161,228.61,228.54,26.27055161]
[1732630682539,0.34038814,228.6,228.54,26.27055161]
[1732630682763,26.27055161,228.57,228.49,26.27055161]
[1732630682914,26.27055161,228.59,228.51,26.27055161]
[1732630683119,0.34038814,228.58,228.51,26.27055161]
[1732630683327,26.27055161,228.6,228.52,26.27055161]
[1732630683522,26.27055161,228.58,228.5,26.27055161]
[1732630683745,26.27055161,228.54,228.46,26.77055161]
[1732630683912,26.27055161,228.48,228.46,0.5]
[1732630684114,0.34038814,228.47,228.46,0.5]
[1732630685036,0.34038814,228.5,228.46,0.5]
[1732630685216,0.34038814,228.51,228.46,0.5]
[1732630685411,37.59661806,228.58,228.46,26.77055161]
[1732630685412,26.27055161,228.54,228.46,26.77055161]
[1732630685636,0.34038814,228.61,228.52,26.27055161]
[1732630685835,26.27055161,228.62,228.49,20.0]
[1732630686036,0.34038814,228.61,228.54,26.27055161]
[1732630686341,0.34038814,228.63,228.57,26.27055161]
[1732630686547,0.34038814,228.67,228.62,26.27055161]
[1732630686742,0.34038814,228.73,228.65,26.27055161]
[1732630686920,0.34038814,228.74,228.68,26.27055161]
[1732630687117,0.34038814,228.76,228.68,26.27055161]
[1732630687316,26.27055161,228.69,228.6,26.27055161]
[1732630687520,26.27055161,228.67,228.6,26.27055161]
[1732630687723,26.61093975,228.74,228.66,26.27055161]
[1732630687919,0.34038814,228.73,228.69,26.27055161]
[1732630688116,0.34038814,228.79,228.64,0.12549]
[1732630688329,0.34038814,228.78,228.68,20.0]
[1732630688521,0.34038814,228.78,228.6,15.8568]
[1732630688716,0.34038814,228.78,228.63,20.0]
[1732630688917,0.34038814,228.78,228.6,15.8568]
[1732630689220,0.34038814,228.78,228.57,4.3749]
[1732630689221,42.67799515,228.65,228.57,42.67799515]
[1732630689424,42.67799515,228.63,228.55,42.67799515]
[1732630689636,42.67799515,228.69,228.57,42.67799515]
[1732630689637,42.67799515,228.65,228.57,42.67799515]
[1732630689823,0.34038814,228.64,228.57,42.67799515]
[1732630690266,42.67799515,228.65,228.57,43.6780014]
[1732630690539,42.67799515,228.71,228.63,42.67799515]
[1732630690720,42.67799515,228.67,228.59,42.67799515]
[1732630691042,0.34038814,228.66,228.59,42.67799515]
[1732630691227,0.34038814,228.66,228.6,0.99987501]
[1732630691540,43.01838329,228.66,228.6,0.99987501]
[1732630691741,0.34038814,228.66,228.6,0.99987501]
[1732630691934,62.2275,228.78,228.61,42.67799515]
[1732630691935,42.67799515,228.68,228.61,42.67799515]
[1732630692237,42.67799515,228.68,228.6,0.99987501]
[1732630692238,42.67799515,228.69,228.62,42.67799515]
[1732630692428,42.67799515,228.65,228.6,0.99987501]
[1732630692632,42.67799515,228.61,228.52,58.53479515]
[1732630692841,42.67799515,228.56,228.46,0.5]
[1732630693026,42.67799515,228.54,228.47,1.00044394]
[1732630693226,0.34038814,228.53,228.47,1.00044394]
[1732630693427,0.34038814,228.53,228.47,43.67843909]
[1732630693724,42.67799515,228.53,228.47,1.00044394]
[1732630693921,42.67799515,228.49,228.47,1.00044394]
[1732630694120,42.67799515,228.5,228.47,1.00044394]
[1732630694348,47.67799515,228.58,228.47,1.00044394]
[1732630694349,0.34038814,228.49,228.47,1.00044394]
[1732630694530,20.34038814,228.53,228.47,1.00044394]
[1732630694846,42.67799515,228.48,228.47,1.00044394]
[1732630695643,47.39508329,228.48,228.46,0.5]
[1732630695828,42.67799515,228.47,228.46,0.5]
[1732630696350,4.99956645,228.45,228.3,15.8568]
[1732630696644,42.67799515,228.36,228.31,1.00114505]
[1732630696950,0.34038814,228.35,228.31,43.6791402]
[1732630697147,0.34038814,228.37,228.31,43.6791402]
[1732630697335,42.67799515,228.44,228.36,42.67799515]
[1732630697540,0.34038814,228.43,228.37,42.67799515]
[1732630698027,42.67799515,228.45,228.39,42.67799515]
[1732630698342,43.01838329,228.5,228.43,42.67799515]
[1732630698643,42.67799515,228.46,228.37,42.67799515]
[1732630698849,10.7027,228.51,228.36,1.00092585]
[1732630698850,42.67799515,228.44,228.36,1.00092585]
[1732630699038,42.67799515,228.42,228.36,1.00092585]
[1732630699219,43.01838329,228.46,228.38,42.67799515]
[1732630699422,0.34038814,228.51,228.44,42.67799515]
[1732630699628,0.34038814,228.57,228.42,43.902374]
[1732630699837,0.34038814,228.62,228.45,0.12549]
[1732630700343,4.99956645,228.6,228.41,20.0]
[1732630700641,0.34038814,228.59,228.42,23.902374]
[1732630700827,42.67799515,228.52,228.44,42.67799515]
[1732630701022,42.67799515,228.54,228.46,42.67799515]
[1732630701219,42.67799515,228.52,228.44,42.67799515]
[1732630701436,0.34038814,228.51,228.46,42.67799515]
[1732630701631,0.34038814,228.53,228.46,42.67799515]
[1732630701854,42.67799515,228.52,228.44,42.67799515]
[1732630702137,0.34038814,228.51,228.44,42.67799515]
[1732630702444,4.99956645,228.6,228.41,20.0]
[1732630702445,42.67799515,228.54,228.47,42.67799515]
[1732630702655,42.67799515,228.52,228.45,42.67799515]
[1732630702948,0.34038814,228.51,228.45,42.67799515]
[1732630703154,42.67799515,228.53,228.46,42.67799515]
[1732630703452,42.67799515,228.53,228.44,42.67799515]
[1732630703453,0.34038814,228.52,228.44,42.67799515]
[1732630703630,0.34038814,228.52,228.45,42.67799515]
[1732630704145,0.34038814,228.57,228.51,42.67799515]
[1732630704445,0.34038814,228.59,228.52,42.67799515]
[1732630704626,42.67799515,228.55,228.48,42.67799515]
[1732630704831,0.34038814,228.54,228.42,23.776884]
[1732630705044,4.99956645,228.61,228.42,23.776884]
[1732630705270,42.67799515,228.51,228.38,15.0777]
[1732630705552,42.67799515,228.47,228.39,42.67799515]
[1732630705740,0.34038814,228.46,228.39,42.67799515]
[1732630705923,0.34038814,228.53,228.45,42.67799515]
[1732630706123,0.34038814,228.53,228.39,0.12549]
[1732630706124,0.34038814,228.53,228.47,42.67799515]
[1732630707135,42.67799515,228.51,228.44,42.67799515]
[1732630707349,4.99956645,228.6,228.39,23.902374]
[1732630707350,0.34038814,228.5,228.48,42.67799515]
[1732630707550,11.2558,228.65,228.5,42.67799515]
[1732630707551,0.34038814,228.55,228.5,42.67799515]
[1732630707849,0.34038814,228.55,228.42,20.0]
[1732630708026,42.67799515,228.55,228.47,42.67799515]
[1732630708226,0.34038814,228.54,228.47,42.67799515]
[1732630708427,0.34038814,228.54,228.48,26.31373896]
[1732630709344,0.34038814,228.54,228.4,23.776884]
[1732630709345,0.34038814,228.54,228.46,26.31373896]
[1732630709550,26.31373896,228.54,228.46,26.31373896]
[1732630709849,0.34038814,228.53,228.47,26.31373896]
[1732630710639,0.34038814,228.54,228.47,26.31373896]
[1732630711029,4.3748,228.58,228.51,26.31373896]
[1732630711030,0.34038814,228.57,228.51,26.31373896]
[1732630711359,26.31373896,228.62,228.54,26.31373896]
[1732630711649,0.34038814,228.61,228.54,26.31373896]
[1732630711861,0.34038814,228.61,228.56,26.31373896]
[1732630712032,26.31373896,228.68,228.6,26.31373896]
[1732630712233,26.31373896,228.64,228.56,26.31373896]
[1732630712545,26.31373896,228.6,228.52,26.31373896]
[1732630712747,26.31373896,228.58,228.51,23.776884]
[1732630713062,26.31373896,228.56,228.48,26.31373896]
[1732630713362,26.31373896,228.52,228.42,26.31373896]
[1732630713547,6.0332,228.57,228.42,26.31373896]
[1732630713548,26.31373896,228.5,228.42,26.31373896]
[1732630713849,0.34038814,228.49,228.42,26.31373896]
[1732630714240,26.31373896,228.51,228.43,26.31373896]
[1732630714441,26.31373896,228.51,228.4,0.12549]
[1732630714442,0.34038814,228.54,228.47,26.31373896]
[1732630714651,0.34038814,228.54,228.4,0.12549]
[1732630714652,6.0332,228.57,228.51,26.31373896]
[1732630714837,0.34038814,228.56,228.51,26.31373896]
[1732630715037,0.34038814,228.58,228.51,26.31373896]
[1732630715750,0.34038814,228.58,228.52,26.31373896]
[1732630716050,26.31373896,228.57,228.5,26.31373896]
[1732630716255,0.34038814,228.56,228.5,26.31373896]
[1732630716760,26.31373896,228.51,228.44,26.31373896]
[1732630716935,26.31373896,228.49,228.41,26.31373896]
[1732630717539,26.31373896,228.51,228.43,26.31373896]
[1732630717746,0.34038814,228.5,228.43,26.31373896]
[1732630718056,26.31373896,228.49,228.41,26.31373896]
[1732630718261,0.34038814,228.48,228.4,23.776884]
[1732630718450,42.78263843,228.5,228.42,42.78263843]
[1732630718640,0.34038814,228.49,228.42,42.78263843]
[1732630719156,42.78263843,228.54,228.46,42.78263843]
[1732630719335,0.34038814,228.53,228.48,42.78263843]
[1732630719537,0.34038814,228.55,228.48,42.78263843]
[1732630721642,4.3747,228.59,228.52,42.78263843]
[1732630721643,0.34038814,228.59,228.52,42.78263843]
[1732630721843,0.34038814,228.59,228.42,4.3779]
[1732630721844,42.78263843,228.58,228.48,42.78263843]
[1732630722053,0.34038814,228.57,228.48,42.78263843]
[1732630722253,0.34038814,228.57,228.42,4.3779]
[1732630722254,0.34038814,228.57,228.52,42.78263843]
[1732630722454,42.78263843,228.58,228.5,42.78263843]
[1732630722639,0.34038814,228.57,228.5,42.78263843]
[1732630723043,42.78263843,228.52,228.45,23.776884]
[1732630723354,0.34038814,228.51,228.44,42.78263843]
[1732630725653,0.34038814,228.56,228.5,42.78263843]
[1732630725841,42.78263843,228.59,228.51,42.78263843]
[1732630726037,0.34038814,228.58,228.53,42.78263843]
[1732630726243,0.34038814,228.6,228.43,28.776884]
[1732630726464,42.78263843,228.57,228.49,42.78263843]
[1732630726661,0.34038814,228.56,228.49,42.78263843]
[1732630726862,42.78263843,228.55,228.47,42.78263843]
[1732630727061,0.34038814,228.54,228.48,23.776884]
[1732630727662,42.78263843,228.57,228.49,42.78263843]
[1732630727856,0.34038814,228.56,228.49,42.78263843]
[1732630728341,42.78263843,228.55,228.45,42.78263843]
[1732630728543,0.34038814,228.56,228.45,42.78263843]
[1732630728544,42.78263843,228.53,228.45,42.78263843]
[1732630728778,0.34038814,228.52,228.45,42.78263843]
[1732630729778,0.34038814,228.52,228.47,42.78263843]
[1732630729959,0.34038814,228.54,228.47,42.78263843]
[1732630730349,42.78263843,228.53,228.45,42.78263843]
[1732630730554,0.34038814,228.52,228.47,42.78263843]
[1732630730752,0.34038814,228.54,228.5,42.78263843]
[1732630730958,0.34038814,228.56,228.5,42.78263843]
[1732630731360,42.78263843,228.55,228.48,42.78263843]
[1732630731557,0.34038814,228.54,228.47,23.776884]
[1732630731961,42.78263843,228.53,228.47,23.776884]
[1732630732155,0.34038814,228.52,228.44,42.78263843]
[1732630732361,42.78263843,228.51,228.44,42.78263843]
[1732630732563,42.78263843,228.58,228.44,42.78263843]
[1732630732564,42.78263843,228.53,228.44,42.78263843]
[1732630733076,0.34038814,228.52,228.44,42.78263843]
[1732630733457,0.34038814,228.52,228.45,23.776884]
[1732630734071,42.78263843,228.51,228.45,23.776884]
[1732630734573,42.78263843,228.51,228.44,42.78263843]
[1732630734773,0.34038814,228.5,228.44,42.78263843]
[1732630736156,42.78263843,228.47,228.4,42.78263843]
[1732630736464,0.34038814,228.46,228.4,42.78263843]
[1732630736672,0.34038814,228.46,228.34,4.3792]
[1732630736673,0.34038814,228.46,228.42,42.78263843]
[1732630736854,42.78263843,228.52,228.44,42.78263843]
[1732630737050,0.34038814,228.51,228.44,42.78263843]
[1732630738375,0.34038814,228.55,228.48,26.320258]
[1732630738580,26.320258,228.58,228.5,26.320258]
[1732630738759,0.34038814,228.57,228.5,26.320258]
[1732630739958,0.34038814,228.57,228.52,26.320258]
[1732630740359,26.320258,228.6,228.53,23.776884]
[1732630740565,0.34038814,228.61,228.56,26.320258]
[1732630740772,38.32212445,228.69,228.53,23.776884]
[1732630740773,6.4686,228.69,228.6,26.320258]
[1732630740975,0.34038814,228.68,228.63,26.320258]
[1732630741153,26.320258,228.64,228.55,26.320258]
[1732630741355,37.161558,228.69,228.52,23.776884]
[1732630741356,26.320258,228.58,228.52,23.776884]
[1732630741689,26.320258,228.56,228.49,46.320258]
[1732630741865,26.320258,228.56,228.49,26.320258]
[1732630742069,26.320258,228.54,228.46,16.5259]
[1732630742262,7.0023,228.62,228.43,26.320258]
[1732630742263,26.320258,228.52,228.43,26.320258]
[1732630742578,0.34038814,228.51,228.44,26.320258]
[1732630742765,0.34038814,228.55,228.49,26.320258]
[1732630742959,0.34038814,228.55,228.41,0.12549]
[1732630743160,0.34038814,228.55,228.4,19.5657]
[1732630743383,26.320258,228.54,228.46,26.320258]
[1732630743567,0.34038814,228.53,228.46,26.320258]
[1732630743766,26.320258,228.48,228.4,41.507758]
[1732630743986,0.34038814,228.47,228.42,26.320258]
[1732630744160,0.34038814,228.47,228.4,41.507758]
[1732630744860,26.320258,228.49,228.42,26.320258]
[1732630745075,26.320258,228.47,228.4,26.320258]
[1732630745280,26.320258,228.45,228.37,26.320258]
[1732630745483,0.34038814,228.44,228.37,26.320258]
[1732630745680,26.320258,228.43,228.35,26.320258]
[1732630745882,0.34038814,228.42,228.35,26.320258]
[1732630747657,0.34038814,228.42,228.39,26.320258]
[1732630747893,17.3716,228.56,228.41,26.320258]
[1732630747894,26.320258,228.53,228.41,26.320258]
[1732630748175,26.320258,228.51,228.43,26.320258]
[1732630748375,0.34038814,228.5,228.45,26.320258]
[1732630748578,0.34038814,228.52,228.45,26.320258]
[1732630749569,49.9,228.51,228.45,26.320258]
[1732630749766,49.9,228.51,228.47,26.320258]
[1732630749967,0.34038814,228.5,228.47,26.320258]
[1732630750267,49.9,228.51,228.47,26.320258]
[1732630750268,49.9,228.51,228.49,26.320258]
[1732630750483,49.9,228.51,228.5,23.776884]
[1732630750782,49.9,228.51,228.49,26.320258]
[1732630752064,49.9,228.51,228.5,23.902374]
[1732630752385,49.9,228.51,228.5,24.027864]
[1732630757072,0.34038814,228.77,228.71,26.320258]
[1732630757279,26.320258,228.83,228.76,26.320258]
[1732630757589,0.34038814,228.82,228.74,26.320258]
[1732630757964,26.320258,228.77,228.7,26.320258]
[1732630758170,0.34038814,228.76,228.7,26.320258]
[1732630758375,0.34038814,228.76,228.68,26.320258]
[1732630758592,26.320258,228.75,228.68,26.320258]
[1732630758879,26.320258,228.73,228.64,26.320258]
[1732630759079,31.31982445,228.8,228.62,26.320258]
[1732630759080,26.320258,228.68,228.62,26.320258]
[1732630759282,0.34038814,228.67,228.6,26.320258]
[1732630759977,26.66064614,228.7,228.62,26.320258]
[1732630760176,0.34038814,228.73,228.66,26.320258]
[1732630760378,0.34038814,228.73,228.68,26.320258]
[1732630760567,0.34038814,228.75,228.68,26.320258]
[1732630761076,0.34038814,228.76,228.72,26.320258]
[1732630761272,0.34038814,228.76,228.6,23.902374]
[1732630761273,6.077,228.84,228.75,50.097142]
[1732630761470,0.34038814,228.83,228.78,26.320258]
[1732630762467,26.320258,228.86,228.78,26.320258]
[1732630762663,0.34038814,228.9,228.84,26.320258]
[1732630762969,0.34038814,228.9,228.82,26.320258]
[1732630762970,26.66064614,228.9,228.82,26.320258]
[1732630763885,26.320258,228.89,228.81,26.320258]
[1732630764091,0.34038814,228.88,228.81,26.320258]
[1732630764587,26.320258,228.84,228.77,26.320258]
[1732630764791,26.320258,228.84,228.75,23.776884]
[1732630764792,26.66064614,228.88,228.8,26.320258]
[1732630765472,26.320258,228.85,228.77,26.320258]
[1732630765666,0.34038814,228.84,228.79,26.320258]
[1732630766289,0.34038814,228.85,228.79,26.320258]
[1732630766873,0.34038814,228.89,228.84,26.320258]
[1732630767166,0.34038814,228.94,228.88,26.320258]
[1732630767381,26.320258,229.0,228.93,26.320258]
[1732630767593,0.34038814,228.99,228.93,26.320258]
[1732630768475,30.687258,228.99,228.91,26.320258]
[1732630768801,22.6785,229.02,228.94,26.320258]
[1732630768802,0.34038814,229.01,228.94,26.320258]
[1732630768976,26.320258,229.0,228.93,26.320258]
[1732630769178,26.320258,229.02,228.94,26.320258]
[1732630769376,27.18074094,229.03,228.95,26.320258]